[Event "4th Tata Steel India Rapid Open 2022"]
[Site "Kolkota"]
[Date "2022.11.29"]
[Round "2.2"]
[White "Maghsoodloo, Parham"]
[Black "Gukesh D"]
[Result "0-1"]
[ECO "E11"]
[WhiteElo "2720"]
[BlackElo "2725"]
[Annotator "TA"]
[PlyCount "120"]
[EventDate "2022.11.29"]
[EventType "tourn"]
[EventCountry "IND"]
[SourceTitle "playchess.com"]
[Source "ChessBase"]
[SourceQuality "1"]
[TimeControl "900+10"]

{[%evp 14,119,11,7,2,9,22,24,25,20,13,13,22,23,31,6,6,4,6,0,0,0,0,0,0,-11,0,-15,0,0,0,-10,-10,-15,-7,-16,-37,-55,-62,-60,-57,-46,-57,-48,-35,-40,-43,-52,-54,-53,-52,-81,-35,-23,-18,-38,-33,-90,-58,-210,-118,-189,0,-7,-2,-398,-377,-708,-604,-598,-584,-449,-8,-8,-7,-8,-8,-29971,-29972,-29972,-29971,-29971,-29972,-29972,-29969,-29970,-29971,-29970,-29972,-29972,-29972,-29962,-3325,-3310,-3180,-3118,-2593,-1043,-1784,-600,-600,-29990,-29962,-29991,-29992,-29992,-29991,-29999]} 1. d4 {[%emt 0:00:02]} Nf6 {[%emt 0:00:04]} 2. c4 {[%emt 0:00:02]} e6 {[%emt 0:00:02]} 3. Nf3 {[%emt 0:00:02]} d5 {[%emt 0:00:02]} 4. g3 {[%emt 0:00:02]} Bb4+ {[%emt 0:00:10]} 5. Bd2 {[%emt 0:00:02]} Be7 {[%emt 0:00:04]} 6. Bg2 {[%emt 0:00:02]} O-O {[%emt 0:00:03]} 7. O-O {[%emt 0:00:03]} c6 {[%emt 0:00:02]} 8. b3 {[%emt 0:00:03]} Nbd7 {[%emt 0:00:30] E11: Bogo-Indian.} 9. Nc3 {[%emt 0:00:19] 9.Nc3 scores better than 9.Bc3.} Ne4 $5 {[%emt 0:00:46][%mdl 4] A promising side line.} 10. Nxe4 {[%emt 0:00:15]} dxe4 {[%emt 0:00:02] White has an edge.} 11. Ne5 {[%emt 0:00:01] [#]} f5 $146 {[%emt 0:00:06]} (11... Nb6 {seems wilder.} 12. Qc2 f6 13. Bxe4 fxe5 14. Bxh7+ Kh8) ({Predecessor:} 11... Nf6 12. Bg5 c5 13. e3 Qc7 14. Bxf6 gxf6 15. Ng4 f5 16. Nh6+ Kg7 17. Qh5 Qd8 {0-1 (40) Koloditsova,R (1908)-Havalda,S (1585) Trnava 2022}) 12. Bf4 {[%emt 0:00:13]} Bf6 {[%emt 0:00:17]} 13. h4 {[%emt 0:00:02]} Qe7 {[%emt 0:02:43]} 14. Qc1 {[%emt 0:01:35]} c5 {[%emt 0:00:18]} 15. e3 {[%emt 0:00:43]} b6 {[%emt 0:01:18]} 16. Rd1 {[%emt 0:00:51]} cxd4 {[%emt 0:01:24]} 17. exd4 {[%emt 0:00:06]} Bb7 {[%emt 0:00:02]} 18. Nxd7 {[%emt 0:00:54]} Qxd7 {[%emt 0:00:02]} 19. Be5 {[%emt 0:00:02]} Rad8 {[%emt 0:00:25]} 20. Qf4 {[%emt 0:01:02]} Bxe5 {[%emt 0:00:45]} 21. Qxe5 {[%emt 0:00:04]} Qd6 {[%emt 0:01:38]} 22. Qxd6 {[%emt 0:00:02]} Rxd6 {[%emt 0:00:02]} 23. c5 {[%emt 0:00:02]} Rd5 {[%emt 0:00:26]} 24. Rac1 {[%emt 0:02:00]} Rfd8 {[%emt 0:00:02] Threatens to win with ...bxc5.} 25. cxb6 {[%emt 0:01:48]} axb6 {[%emt 0:00:02]} 26. Rc7 {[%emt 0:00:01]} R8d7 {[%emt 0:00:10]} (26... Rxd4 $2 27. Rxd4 Rxd4 28. Rxb7 $18) 27. Rxd7 {[%emt 0:00:01]} Rxd7 $15 {[%emt 0:00:01][%mdl 4096] Endgame KRB-KRB} 28. Bf1 {[%emt 0:00:01]} Kf7 {[%emt 0:01:45]} 29. Rc1 {[%emt 0:01:46] Inhibits e5.} Kf6 {[%emt 0:01:15]} (29... Rxd4 $2 30. Rc7+ Kf6 31. Rxb7 $18) 30. Rc4 {[%emt 0:00:01]} Bd5 {[%emt 0:01:40]} 31. Rb4 {[%emt 0:00:03]} Rd6 {[%emt 0:00:04]} 32. a4 {[%emt 0:00:57]} h6 {[%emt 0:00:27]} (32... g5 $17) 33. Bc4 {[%emt 0:00:14]} g5 {[%emt 0:00:19]} 34. hxg5+ {[%emt 0:00:20]} hxg5 {[%emt 0:00:01]} 35. Kf1 {[%emt 0:00:11]} (35. Bxd5 $15 exd5 36. Rb5) 35... f4 $1 $17 {[%emt 0:00:19] aiming for ...Kf5.} 36. gxf4 $2 {[%emt 0:00:01]} ({Better is} 36. Bxd5 $15 exd5 37. g4) 36... gxf4 $19 {[%emt 0:00:01]} 37. Ke2 {[%emt 0:00:21] [#]} (37. Bxd5 $17 exd5 38. f3) 37... Bxc4+ $2 {[%emt 0:01:38]} (37... Kg5 $1 $19 {Strongly threatening ...Kg4.} 38. Ke1 Kh4) 38. Rxc4 {[%emt 0:00:01] KR-KR} e5 {[%emt 0:00:02]} 39. d5 {[%emt 0:01:38][%mdl 8192] [#]} (39. dxe5+ $1 $11 {and White is okay.} Kxe5 40. Rc3) 39... Kf5 $1 {[%emt 0:00:02]} 40. Rc6 $2 {[%emt 0:00:01]} (40. Rc8 Rxd5 41. Rf8+ Ke6 42. Rb8) 40... Rxd5 {[%emt 0:00:11]} 41. Rxb6 {[%emt 0:00:01]} f3+ {[%emt 0:01:19]} 42. Ke1 {[%emt 0:00:01]} e3 $2 {[%emt 0:00:06]} (42... Rd7 $19 {...Rh7 is the strong threat.} 43. Rh6 Rb7 44. Rh5+ Ke6 45. Rh6+ Kd5) 43. fxe3 $11 {[%emt 0:00:30]} Ke4 {[%emt 0:00:01]} 44. Rb5 $1 {[%emt 0:00:10]} Rd3 {[%emt 0:00:08]} (44... Rxb5 45. axb5 f2+ 46. Kxf2 Kd5 47. b6 Kd6 48. Kf3 Kd7 49. Ke4) 45. a5 $2 {[%emt 0:00:02][%mdl 8192] Black keeps a firm grip on the game.} (45. Kf2 $11 Rd2+ 46. Kf1) 45... Rxe3+ {[%emt 0:00:30]} 46. Kf1 {[%emt 0:00:53]} Rc3 {[%emt 0:00:01]} 47. a6 {[%emt 0:00:12]} Rc1+ {[%emt 0:00:17]} 48. Kf2 {[%emt 0:00:01]} Rc2+ {[%emt 0:00:02]} 49. Kf1 {[%emt 0:02:37]} Ra2 {[%emt 0:01:20]} 50. Rb4+ {[%emt 0:00:02]} Ke3 {[%emt 0:00:01][%cal Ra2a1]} 51. Ra4 {[%emt 0:00:02]} Rh2 {[%emt 0:00:09][%cal Rh2h1]} 52. Kg1 {[%emt 0:00:02]} f2+ {[%emt 0:00:32]} (52... Rh7 $142 53. Ra2 Rg7+ 54. Kf1 Rc7 55. Kg1 Rc1+ 56. Kh2 f2 57. a7 f1=Q 58. a8=Q Qf4+ 59. Kg2 Qg4+ 60. Kh2 Qh5+ 61. Kg3 Qg6+ 62. Kh3 Rc7 63. Ra7 Qf5+ 64. Kh4 Qf4+ 65. Kh5 Qf7+ 66. Kh6 Qg7+ 67. Kh5 Qh7+ 68. Kg4 Qg7+ 69. Kf5 Qf7+ 70. Kg5 Rxa7 71. Qc6 Qf4+ 72. Kg6 Qg4+ 73. Kf6 Qg7+ 74. Kf5 Rf7+ 75. Ke6 Rf6+ 76. Kd5 Qg2+ 77. Kc5 Rxc6+ 78. Kb4 Rb6+ 79. Ka5 Rxb3 80. Ka6 Qa8#) 53. Kxh2 $19 {[%emt 0:00:02]} f1=Q {[%emt 0:00:01] ( -> ...Qf2+). KQ-KR} (53... f1=R 54. a7 Rf7 55. a8=Q Rh7+ 56. Kg3 Rg7+ 57. Kh4 Rh7+ 58. Kg5 Rg7+ 59. Kf6) 54. a7 {[%emt 0:00:01]} Qf2+ {[%emt 0:00:02]} 55. Kh3 {[%emt 0:00:10]} Qf3+ {[%emt 0:00:01]} 56. Kh4 {[%emt 0:00:02]} Qa8 {[%emt 0:00:01]} 57. b4 {[%emt 0:02:33]} e4 {[%emt 0:00:01] Black mates.} 58. b5 {[%emt 0:00:19]} Kf4 {[%emt 0:00:21][%cal Ra8h8]} 59. Kh5 {[%emt 0:00:42]} Kf5 {[%emt 0:00:11][%cal Ra8h8]} 60. Kh6 {[%emt 0:00:02]} Qh8# {[%emt 0:00:04] Weighted Error Value: White=0.54/Black=0.46} 0-1

[Event "4th Tata Steel India Rapid Open 2022"]
[Site "Kolkota"]
[Date "2022.11.29"]
[Round "2.3"]
[White "Nakamura, Hikaru"]
[Black "So, Wesley"]
[Result "0-1"]
[ECO "D38"]
[WhiteElo "2768"]
[BlackElo "2760"]
[Annotator "TA"]
[PlyCount "180"]
[EventDate "2022.11.29"]
[EventType "tourn"]
[EventCountry "IND"]
[SourceTitle "playchess.com"]
[Source "ChessBase"]
[SourceQuality "1"]
[TimeControl "900+10"]

{[%evp 15,180,13,13,17,22,-6,-7,-13,-6,-12,0,-6,0,0,0,0,0,0,10,1,0,0,4,5,19,19,19,19,18,8,6,0,0,-4,0,-10,29,0,0,0,0,0,0,-4,0,-39,-39,-39,-39,-39,-39,-47,-40,-66,-66,-66,-66,-66,-66,-66,-66,-67,-66,-74,-75,-79,-63,-78,-78,-107,-107,-107,-107,-107,-107,-107,-107,-107,-107,-114,-114,-114,-114,-239,-239,-239,-239,-239,-239,-239,-239,-239,-239,-239,-239,-239,-239,-239,-241,-245,-239,-245,-221,-221,-214,-245,-214,-281,-280,-385,-363,-345,-286,-307,-247,-302,-205,-254,-254,-247,-239,-346,-237,-520,-502,-649,-720,-761,-745,-848,-746,-763,-693,-497,-570,-767,-443,-801,-767,-972,-938,-875,-902,-973,-935,-917,-850,-791,-729,-740,-733,-937,-875,-820,-767,-980,-1485,-1507,-1942,-1466,-1466,-1459,-1055,-29990,-12838,-12831,-1746]} 1. d4 {[%emt 0:00:02]} d5 {[%emt 0:00:23]} 2. c4 {[%emt 0:00:23]} e6 {[%emt 0:00:04]} 3. Nc3 {[%emt 0:00:14]} Nf6 {[%emt 0:00:03]} 4. cxd5 {[%emt 0:00:41]} exd5 {[%emt 0:00:02]} 5. Bg5 {[%emt 0:00:23]} Bb4 {[%emt 0:00:05]} 6. Nf3 {[%emt 0:00:31]} h6 {[%emt 0:00:07]} 7. Bh4 {[%emt 0:00:13]} O-O {[%emt 0:00:05]} 8. e3 {[%emt 0:00:21]} Bf5 {[%emt 0:00:05]} 9. Be2 {[%emt 0:01:39]} Nbd7 {[%emt 0:00:06]} 10. Nd2 {[%emt 0:00:18]} (10. Qb3 $5 {[%cal Rb3b4]} Ba5 11. Bg3 $11) 10... c6 {[%emt 0:00:16]} 11. Bg3 {[%emt 0:00:21]} Qe7 {[%emt 0:01:07]} 12. Qb3 {[%emt 0:00:29]} Nb6 {[%emt 0:04:33]} 13. O-O {[%emt 0:00:17]} Rfe8 {[%emt 0:00:13]} 14. a3 {[%emt 0:01:12]} Bd6 {[%emt 0:00:07]} 15. Bxd6 {[%emt 0:00:02]} Qxd6 {[%emt 0:00:02]} 16. a4 {[%emt 0:00:01]} Rab8 {[%emt 0:01:10]} 17. a5 {[%emt 0:00:08]} (17. Rfc1 {is interesting.} Ng4 18. Nf1 Nf6 19. a5) 17... Nbd7 {[%emt 0:00:44]} 18. Qa3 {[%emt 0:00:28]} Qe6 {[%emt 0:00:30]} 19. Rfe1 {[%emt 0:00:21]} Ne4 {[%emt 0:00:27]} 20. Ncxe4 {[%emt 0:00:36]} Bxe4 {[%emt 0:00:03]} 21. a6 {[%emt 0:00:01]} b6 {[%emt 0:00:17]} 22. Rac1 {[%emt 0:00:28]} Bf5 {[%emt 0:00:32]} 23. b4 {[%emt 0:00:53]} Qg6 {[%emt 0:01:03]} 24. Rc3 {[%emt 0:00:38]} Re6 {[%emt 0:00:06]} 25. Rec1 {[%emt 0:00:47]} Rbe8 {[%emt 0:00:43]} 26. Bf1 {[%emt 0:01:25]} (26. Nf1 $5 {[%cal Rf1g3]}) 26... b5 {[%emt 0:00:18]} 27. Qa5 {[%emt 0:01:02]} Nb6 {[%emt 0:00:44]} 28. Nf3 {[%emt 0:00:01]} Nc4 {[%emt 0:00:11]} 29. Qc7 {[%emt 0:02:40]} R6e7 {[%emt 0:00:52]} 30. Qg3 {[%emt 0:00:15]} (30. Qf4 $5 {[%cal Rf3h4]} Be4 31. Ne5 $11) 30... Qxg3 {[%emt 0:00:30]} 31. hxg3 {[%emt 0:00:01]} Rb8 {[%emt 0:00:01]} 32. Ra1 {[%emt 0:01:01]} Rb6 {[%emt 0:00:03]} 33. Ne1 {[%emt 0:00:27]} Bc8 {[%emt 0:00:23]} 34. Rc2 {[%emt 0:00:05]} Rxa6 {[%emt 0:00:13]} ({Much weaker is} 34... Bxa6 35. Nd3 $11) 35. Rxa6 {[%emt 0:00:02]} Bxa6 {[%emt 0:00:01]} 36. Nd3 {[%emt 0:00:04]} Bc8 {[%emt 0:00:03]} 37. Ra2 {[%emt 0:00:21]} Kf8 {[%emt 0:00:05]} 38. Nc5 {[%emt 0:00:03]} Nd6 {[%emt 0:00:34]} 39. Bd3 {[%emt 0:00:14]} Ke8 {[%emt 0:00:25]} 40. Kf1 {[%emt 0:00:05]} Kd8 {[%emt 0:00:43]} 41. Ke2 {[%emt 0:00:09]} a6 {[%emt 0:00:37]} 42. f3 {[%emt 0:00:33]} f5 {[%emt 0:00:01]} 43. Kd2 {[%emt 0:00:31]} Ra7 {[%emt 0:00:02]} 44. Kc3 {[%emt 0:00:05]} Kc7 {[%emt 0:00:04]} 45. Ra1 {[%emt 0:00:48]} Kb6 {[%emt 0:00:04]} 46. Nb3 {[%emt 0:00:01]} Re7 {[%emt 0:00:11]} 47. Re1 {[%emt 0:00:07]} Nb7 {[%emt 0:00:27]} 48. Bc2 {[%emt 0:00:10]} a5 {[%emt 0:00:10]} 49. Bd3 {[%emt 0:00:43]} (49. Nxa5 $17 Nxa5 50. bxa5+ Kxa5 51. Kd2) 49... a4 $19 {[%emt 0:00:11]} 50. Nc5 {[%emt 0:00:14]} Nxc5 {[%emt 0:00:32]} 51. dxc5+ {[%emt 0:00:03]} Kc7 {[%emt 0:00:01]} 52. Kd4 {[%emt 0:00:04]} Kd8 {[%emt 0:00:03]} 53. Bb1 {[%emt 0:00:12]} Ke8 {[%emt 0:00:06]} 54. Rh1 {[%emt 0:00:03]} Kf7 {[%emt 0:00:06]} 55. Rh5 {[%emt 0:00:10]} Kg6 {[%emt 0:00:33]} 56. Rh1 {[%emt 0:00:22]} Kg5 {[%emt 0:00:22]} 57. Bc2 {[%emt 0:00:10]} Bd7 {[%emt 0:00:09]} 58. Rh4 {[%emt 0:00:17]} h5 {[%emt 0:00:33]} 59. Rh1 {[%emt 0:00:01]} Be8 {[%emt 0:00:09]} 60. Bd3 {[%emt 0:00:09]} Bf7 {[%emt 0:00:20]} 61. Bb1 {[%emt 0:00:06]} Kf6 {[%emt 0:00:08]} 62. Rh2 {[%emt 0:00:05]} Re8 {[%emt 0:00:02]} 63. Rh1 {[%emt 0:00:01]} Rh8 {[%emt 0:00:02]} 64. Bc2 {[%emt 0:00:13]} Be6 {[%emt 0:00:05]} 65. Bd3 {[%emt 0:00:08]} Rh6 {[%emt 0:00:06]} 66. f4 {[%emt 0:00:33]} Bf7 {[%emt 0:00:07]} 67. Be2 {[%emt 0:00:13]} Rh8 {[%emt 0:00:12]} 68. Bd3 {[%emt 0:00:01]} (68. Bf3 {was necessary.}) 68... g5 {[%emt 0:00:18]} 69. Bc2 $2 {[%emt 0:00:56]} (69. Rf1 gxf4 70. gxf4) 69... Rg8 $19 {[%emt 0:00:04]} 70. Rh2 {[%emt 0:00:01]} a3 {[%emt 0:00:27]} 71. Bb3 {[%emt 0:00:01]} Re8 {[%emt 0:00:01]} 72. Bc2 {[%emt 0:00:05]} a2 {[%emt 0:00:53]} 73. Rh1 {[%emt 0:00:01]} Ra8 {[%emt 0:00:01]} 74. Ra1 {[%emt 0:00:00]} Ra3 {[%emt 0:00:01]} 75. Bd1 {[%emt 0:00:02]} Bg6 {[%emt 0:00:26]} 76. Be2 {[%emt 0:00:15]} (76. fxg5+ $142 Kxg5 77. Be2) 76... gxf4 $19 {[%emt 0:00:43]} 77. gxf4 {[%emt 0:00:02]} h4 {[%emt 0:00:00]} 78. Bf3 {[%emt 0:00:05]} Bf7 {[%emt 0:00:02]} 79. Bd1 {[%emt 0:00:17]} Be8 {[%emt 0:00:19]} 80. Be2 {[%emt 0:00:06]} Bd7 {[%emt 0:00:15]} 81. Bd1 {[%emt 0:00:05]} Be6 {[%emt 0:00:00]} 82. Bc2 {[%emt 0:00:18]} Bg8 {[%emt 0:00:12]} 83. Bd1 {[%emt 0:00:20]} Bf7 {[%emt 0:00:01]} 84. Bf3 {[%emt 0:00:13]} Ra4 {[%emt 0:00:01]} 85. Kc3 {[%emt 0:00:01]} h3 {[%emt 0:00:35]} 86. gxh3 {[%emt 0:00:55]} d4+ {[%emt 0:00:01]} 87. Kc2 dxe3 {[%emt 0:00:10]} 88. Kc3 {[%emt 0:00:04]} Ra3+ {[%emt 0:00:08]} 89. Kd4 {[%emt 0:00:06]} Rb3 {[%emt 0:00:12]} (89... Bc4 $142 90. Be4 e2 91. Bc2 Rf3 92. Re1 Rf1 93. Bd3 Rxe1 94. Ke3 a1=Q 95. Kf3 Rf1+ 96. Kg2 e1=Q 97. Bxf1 Qb2+ 98. Kh1 Qxf1#) 90. Rxa2 {[%emt 0:00:01]} Rxb4+ {[%emt 0:00:01]} 0-1

[Event "4th Tata Steel India Rapid Open 2022"]
[Site "Kolkota"]
[Date "2022.11.29"]
[Round "2.4"]
[White "Erigaisi Arjun"]
[Black "Vidit, Santosh Gujrathi"]
[Result "1/2-1/2"]
[ECO "A06"]
[WhiteElo "2718"]
[BlackElo "2724"]
[Annotator "TA"]
[PlyCount "71"]
[EventDate "2022.11.29"]
[EventType "tourn"]
[EventCountry "IND"]
[SourceTitle "playchess.com"]
[Source "ChessBase"]
[SourceQuality "1"]
[TimeControl "900+10"]

{[%evp 9,71,10,25,-33,0,-27,0,-26,-8,-279,-276,-270,-262,-257,-263,-243,-240,-313,-265,-266,-263,-263,-235,-291,-270,-381,-383,-387,-379,-385,-377,-427,-371,-576,-600,-685,-684,-684,-684,-674,-658,-674,-674,-684,-625,-684,-473,-460,0,0,0,0,0,0,0,0,0,0,0,0,0,0,0,0]} 1. b3 {[%emt 0:00:02]} d5 {[%emt 0:00:21]} 2. Bb2 {[%emt 0:00:02]} c5 {[%emt 0:00:57]} 3. Nf3 {[%emt 0:00:18]} f6 {[%emt 0:01:23][%cal Bf7f6,Bf6f5][%mdl 32]} 4. e4 {[%emt 0:00:02]} dxe4 {[%emt 0:00:15]} 5. Nh4 {[%emt 0:00:03]} g6 {[%emt 0:00:28] [#]} (5... Nh6 {simplifies} 6. Nc3 e6 7. d3 exd3 8. Bxd3 Nf7) 6. Qe2 $146 {[%emt 0:04:07] A06: Réti Opening: 1 Nf3 d5.} ({White should try} 6. Nc3 $11) ({Predecessor:} 6. Nc3 e5 7. Bb5+ Bd7 8. Bxd7+ Nxd7 9. Nxe4 Nh6 10. Nf3 Nf7 11. Qe2 Bg7 12. h4 {1-0 (71) Travadon,L (2424)-Alekseenko,K (2696) Chess.com INT 2020}) 6... Bg7 {[%emt 0:00:59] Strongly threatening ...g5.} 7. Qxe4 {[%emt 0:00:03]} f5 {[%emt 0:02:12][%cal Og7b2] Hoping for ...Bxb2!} (7... Nc6 {simplifies} 8. Nc3 f5 9. Qc4 e5) 8. Qa4+ {[%emt 0:00:39]} Bd7 {[%emt 0:00:02][%cal Og7b2]} 9. Bxg7 {[%emt 0:00:05][%mdl 8192]} (9. Qa3 $11 {and White is okay.} Bxb2 10. Qxb2) 9... Bxa4 $19 {[%emt 0:00:03]} 10. bxa4 {[%emt 0:00:02] [#]} Nf6 $1 {[%emt 0:00:58]} 11. Bxh8 {[%emt 0:02:09]} Qd4 {[%emt 0:00:02][%csl LRa1,LRa4,LRh4]} 12. Nc3 {[%emt 0:00:02]} Qxh4 {[%emt 0:00:06]} 13. Rb1 {[%emt 0:00:12]} Nbd7 {[%emt 0:03:03][%cal Bb8d7,Bd7f6,Bf6e4,Be4d2][%mdl 32]} 14. Rxb7 {[%emt 0:03:07]} Kf7 {[%emt 0:00:05]} 15. Bxf6 {[%emt 0:00:51]} Nxf6 {[%emt 0:00:01]} 16. Be2 {[%emt 0:00:21]} Qd4 {[%emt 0:01:03]} 17. a5 {[%emt 0:03:08]} (17. Bf3 {was necessary.}) 17... Ne4 {[%emt 0:02:03]} 18. O-O {[%emt 0:00:06]} Nxd2 {[%emt 0:00:47]} (18... Qxd2 $2 19. Bc4+ Kf8 20. Nxe4 fxe4 21. Bb3 $19) 19. Nb5 {[%emt 0:00:02]} Qa4 {[%emt 0:01:31]} (19... Qd5 $2 20. a6 $19) 20. Rd1 {[%emt 0:00:40]} Qxc2 {[%emt 0:00:20]} 21. a6 {[%emt 0:00:48]} (21. Nxa7 {was worth a try.} Qe4 22. Nc6 Qxc6 23. Rb6) 21... Rd8 {[%emt 0:00:16][%cal Od2e4] And now ...Ne4! would win.} 22. h3 {[%emt 0:01:30] [#]} Nf3+ {[%emt 0:00:47][%mdl 512]} 23. gxf3 {[%emt 0:00:02]} Rxd1+ {[%emt 0:00:01]} 24. Bxd1 {[%emt 0:00:01]} Qxd1+ {[%emt 0:00:01][%mdl 4096] Endgame KQ-KRN} 25. Kg2 {[%emt 0:00:02]} Qa4 {[%emt 0:00:15][%csl LRa2,LRa6]} 26. Nc7 {[%emt 0:00:03]} c4 {[%emt 0:00:07]} ({Not} 26... Qxa2 27. Rxa7 c4 28. Nd5 $17) 27. Rxa7 {[%emt 0:00:02]} c3 {[%emt 0:00:00][%cal Oc3c2] ( -> ...c2!)} ({And not} 27... Qxa2 28. Nd5 Ke6 29. Nb4 $17) 28. Nd5 {[%emt 0:00:35]} Qc6 $2 {[%emt 0:01:16]} ({Worse is} 28... Qxa2 29. Rxe7+ Kf8 30. Nb4 $15) (28... Qa5 $19 29. Rxe7+ Kf8) 29. Rxe7+ $11 {[%emt 0:00:23] The position is equal.} Kf8 30. Nb4 {[%emt 0:00:03]} c2 {[%emt 0:00:34]} 31. Nxc6 {[%emt 0:00:09][%cal Oa6a7] Intending a7! and mate. Chess con chili.} c1=Q {[%emt 0:00:01]} 32. a7 {[%emt 0:00:38][%cal Ra7a8]} (32. Re6 $5 Qg5+ $8 33. Kh1 Qc1+ 34. Kg2 Qg5+ 35. Kh2 Qf4+ 36. Kg2 Qg5+ $11) 32... Qg5+ $1 {[%emt 0:00:17]} 33. Kf1 {[%emt 0:00:03][%cal Ra7a8]} (33. Kh1 $5 Qc1+ $8 34. Kh2 Qxc6 35. Rxh7 $18) 33... Qc1+ {[%emt 0:00:01]} 34. Kg2 {[%emt 0:00:09][%cal Ra7a8]} Qg5+ $1 {[%emt 0:00:01]} (34... Qxc6 35. Rxh7 Kg8 36. Rc7) 35. Kh1 {[%emt 0:00:09][%cal Ra7a8]} (35. Kf1 $5 Qc1+ $8 36. Kg2 $11) 35... Qc1+ {[%emt 0:00:01]} 36. Kg2 {[%emt 0:00:04] Black had all chances to win.   Weighted Error Value: White=0.44/Black=0.47} 1/2-1/2

[Event "4th Tata Steel India Rapid Open 2022"]
[Site "Kolkota"]
[Date "2022.11.29"]
[Round "2.5"]
[White "Nihal Sarin"]
[Black "Abdusattorov, Nodirbek"]
[Result "1/2-1/2"]
[ECO "A36"]
[WhiteElo "2670"]
[BlackElo "2713"]
[Annotator "TA"]
[PlyCount "72"]
[EventDate "2022.11.29"]
[EventType "tourn"]
[EventCountry "IND"]
[SourceTitle "playchess.com"]
[Source "ChessBase"]
[SourceQuality "1"]
[TimeControl "900+10"]

{[%evp 9,72,3,18,0,10,15,8,12,17,11,20,20,17,0,1,0,0,10,7,-23,-26,-29,27,-3,-2,0,0,-27,0,-16,-20,-24,-5,-15,0,-49,0,-5,-7,-7,-11,-43,0,-7,0,0,0,0,12,12,37,-7,44,0,0,0,0,0,0,0,0,0,0,0,0]} 1. c4 {[%emt 0:00:02]} c5 {[%emt 0:00:02]} 2. g3 {[%emt 0:00:11]} g6 {[%emt 0:00:03]} 3. Bg2 {[%emt 0:00:01]} Bg7 {[%emt 0:00:01]} 4. Nc3 {[%emt 0:00:01]} Nc6 {[%emt 0:00:06]} 5. d3 {[%emt 0:00:27]} d6 {[%emt 0:00:22]} 6. Qd2 {[%emt 0:00:02] A36: Symmetrical English vs ...g6: 4 Bg2 Bg7.} Bd7 {[%emt 0:01:14]} 7. b3 {[%emt 0:00:06]} Nf6 {[%emt 0:00:02]} 8. Bb2 {[%emt 0:00:01]} O-O {[%emt 0:00:03]} 9. e3 {[%emt 0:00:27]} Rb8 {[%emt 0:00:42]} 10. Nge2 {[%emt 0:00:06]} a6 {[%emt 0:00:06]} 11. h3 {[%emt 0:01:01]} b5 {[%emt 0:00:46] [#]} 12. g4 $146 {[%emt 0:00:05]} ({Predecessor:} 12. Rd1 Nb4 13. O-O Ne8 14. Ba1 Nc6 15. f4 f5 16. Nd5 Bxa1 17. Rxa1 e6 18. Ndc3 {0-1 (87) Rakhmanov,A (2657)-Henriquez Villagra,C (2608) Riga 2021}) 12... b4 {[%emt 0:01:03]} 13. Ne4 {[%emt 0:01:50]} Nxe4 {[%emt 0:00:34]} 14. dxe4 {[%emt 0:01:05]} Bxb2 {[%emt 0:02:35]} 15. Qxb2 {[%emt 0:00:01]} Ne5 {[%emt 0:01:44]} ({Better is} 15... a5) 16. Rd1 {[%emt 0:00:09]} (16. Qd2 $5 {[%cal Rf2f4]}) 16... f6 {[%emt 0:00:12]} 17. f4 {[%emt 0:00:08]} Nf7 {[%emt 0:00:02]} 18. Ng3 {[%emt 0:01:18]} e5 {[%emt 0:00:52]} 19. Bf3 {[%emt 0:01:06]} Qe7 {[%emt 0:01:21]} 20. h4 {[%emt 0:02:46][%cal Bh3h4,Bh4h5][%mdl 32]} a5 {[%emt 0:00:13][%cal Ba6a5,Ba5a4][%mdl 32]} 21. Kf2 {[%emt 0:01:34]} a4 {[%emt 0:00:06]} (21... Rfe8 {looks sharper.} 22. h5 exf4 23. exf4 g5) 22. Kg2 {[%emt 0:00:13]} (22. h5 $11) 22... Ra8 {[%emt 0:04:48]} 23. h5 {[%emt 0:03:20]} g5 {[%emt 0:00:00]} 24. Nf5 {[%emt 0:00:39]} Bxf5 {[%emt 0:00:00]} 25. exf5 {[%emt 0:00:02]} Rae8 {[%emt 0:00:53]} 26. Rhe1 {[%emt 0:02:11]} a3 {[%emt 0:00:15]} ({Much less strong is} 26... exf4 27. exf4 (27. bxa4 fxe3 28. Bc6 Kg7 $15) 27... Qd8 28. fxg5 (28. bxa4 gxf4 29. Bd5 Kg7 $11) 28... Nxg5 29. Qd2 $14 (29. bxa4 Nxf3 30. Kxf3 Qa8+ 31. Kg3 Qxa4 $14)) (26... e4 $5 27. Be2 $8 Ra8 $11) 27. Qd2 {[%emt 0:00:18]} e4 {[%emt 0:00:16]} 28. Be2 {[%emt 0:00:02][%cal Bf3e2,Be2f1,Bf1g2][%mdl 32]} Rd8 {[%emt 0:00:40]} 29. Qd5 {[%emt 0:00:04]} Kh8 {[%emt 0:00:12]} 30. Kg3 {[%emt 0:00:38]} (30. Qe6 $5 {[%cal Re6e7]} Rfe8 31. Qxe7 Rxe7 32. Rh1 $11) 30... h6 {[%emt 0:00:11]} ({Black should play} 30... Rfe8 $11) 31. Rd2 {[%emt 0:00:11]} (31. Qe6 $5 {[%cal Re6e7]} Rfe8 32. Qxe7 Rxe7 33. Bf1 $14) 31... Rfe8 {[%emt 0:00:06] The position is equal.} 32. Bf1 {[%emt 0:00:06]} Kg7 {[%emt 0:00:07]} 33. Bg2 {[%emt 0:00:01]} Rd7 {[%emt 0:00:14]} 34. Red1 {[%emt 0:00:03]} Rdd8 {[%emt 0:00:01]} 35. Re1 {[%emt 0:00:14]} Rd7 {[%emt 0:00:01]} 36. Red1 {[%emt 0:00:01]} Rdd8 {[%emt 0:00:01] A balanced but interesting game.   Weighted Error Value: White=0.10 (very precise) /Black=0.12 (very precise)} 1/2-1/2